fUST/lending_fUST_20240229
["ID","MTS","AMOUNT","RATE_DAILY","PERIOD"]
[315793167,1709182246359,-500.0,0.00019441,2]
[315793168,1709182246368,-151.942191,0.00019451,2]
[315793169,1709182246378,-500.0,0.00019451,2]
[315793170,1709182246387,-500.0,0.00019451,2]
[315793171,1709182246397,-2182.95,0.00019451,2]
[315793172,1709182246406,-695.49,0.00019451,2]
[315793173,1709182246415,-775.39,0.00019451,2]
[315793174,1709182246425,-558.27,0.00019451,2]
[315793175,1709182246434,-500.0,0.00019452,2]
[315793176,1709182246444,-406.28313576,0.00019452,2]
[315793177,1709182246453,-500.0,0.00019452,2]
[315793178,1709182246463,-271.81,0.00019452,2]
[315793179,1709182246472,-590.22,0.00019452,2]
[315793180,1709182246481,-436.21835726,0.00019452,2]
[315793181,1709182246491,-500.0,0.00019452,2]
[315793182,1709182246501,-501.87,0.00019452,2]
[315793183,1709182246510,-151.0,0.00019452,2]
[315793184,1709182246520,-151.0,0.00019452,2]
[315793185,1709182246529,-500.0,0.00019452,2]
[315793186,1709182246539,-3758.78,0.00019452,2]
[315793187,1709182246548,-500.0,0.00019452,2]
[315793188,1709182246557,-500.0,0.00019452,2]
[315793189,1709182246566,-498.0,0.00019452,2]
[315793190,1709182246575,-500.0,0.00019452,2]
[315793191,1709182246584,-280.4726367,0.00019452,2]
[315793192,1709182246593,-500.0,0.00019452,2]
[315793193,1709182246602,-1496.5,0.00019452,2]
[315793194,1709182246611,-500.0,0.00019452,2]
[315793195,1709182246621,-500.0,0.00019452,2]
[315793196,1709182246631,-500.0,0.0001967,2]
[315793197,1709182246640,-6237.95,0.00019695,3]
[315793198,1709182246650,-3726.8,0.00019705,2]
[315793199,1709182246662,-7485.54,0.00019705,3]
[315793200,1709182246672,-223.464362,0.00019705,2]
[315793201,1709182246681,-223.464362,0.00019705,2]
[315793202,1709182246690,-8982.65,0.00019715,3]
[315793203,1709182246701,-517.16,0.00019716,3]
[315793204,1709182246710,-500.0,0.00019725,2]
[315793205,1709182246719,-500.0,0.00019725,2]
[315793206,1709182246729,-500.0,0.00019725,2]
[315793207,1709182246739,-2182.95,0.00019725,2]
[315793208,1709182246749,-695.49,0.00019725,2]
[315793209,1709182246758,-775.39,0.00019725,2]
[315793210,1709182246767,-558.27,0.00019725,2]
[315793211,1709182246777,-500.0,0.00019726,2]
[315793212,1709182246786,-500.0,0.00019726,2]
[315793213,1709182246795,-590.22,0.00019726,2]
[315793214,1709182246805,-500.0,0.00019726,2]
[315793215,1709182246815,-501.87,0.00019726,2]
[315793216,1709182246824,-151.0,0.00019726,2]
[315793217,1709182246833,-151.0,0.00019726,2]
[315793218,1709182246843,-500.0,0.00019726,2]
[315793219,1709182246852,-3758.78,0.00019726,2]
[315793220,1709182246862,-500.0,0.00019726,2]
[315793221,1709182246871,-500.0,0.00019726,2]
[315793222,1709182246883,-500.0,0.00019726,2]
[315793223,1709182246892,-3.20738441,0.00019726,2]
[315793227,1709182460276,157.14284784,0.000176,2]
[315793234,1709182963384,24900.0,0.00017732,2]
[315793327,1709183432434,-274.00317953,0.00018145,2]
[315793329,1709183432443,-214.107232,0.00018146,2]
[315793331,1709183432453,-6114.8246289,0.00018544,2]
[315793333,1709183432462,-316.17863016,0.000189,2]
[315793335,1709183432471,-155.20020827,0.00019,2]
[315793337,1709183432481,-14023.43078219,0.00019,2]
[315793339,1709183432490,-680.66582547,0.00019177,2]
[315793341,1709183432499,-500.0,0.00019178,2]
[315793343,1709183432508,-544.71679012,0.00019178,2]
[315793345,1709183432517,-633.28076739,0.00019178,2]
[315793347,1709183432526,-500.0,0.00019178,2]
[315793348,1709183432535,-500.0,0.00019178,2]
[315793350,1709183432544,-500.0,0.00019178,2]
[315793352,1709183432553,-500.0,0.00019178,2]
[315793354,1709183432562,-1371.79,0.00019178,2]
[315793356,1709183432571,-2001.04,0.00019178,2]
[315793358,1709183432580,-500.0,0.00019178,2]
[315793360,1709183432590,-710.77,0.00019178,2]
[315793362,1709183432599,-500.0,0.00019178,2]
[315793364,1709183432608,-500.0,0.00019178,2]
[315793366,1709183432617,-500.0,0.00019178,2]
[315793368,1709183432626,-166.666666,0.00019178,2]
[315793370,1709183432635,-500.0,0.0001944,2]
[315793372,1709183432644,-500.0,0.0001944,2]
[315793374,1709183432654,-511.75,0.0001944,2]
[315793376,1709183432662,-516.44,0.0001944,2]
[315793378,1709183432672,-500.0,0.0001944,2]
[315793380,1709183432681,-500.0,0.0001944,2]
[315793382,1709183432689,-500.0,0.00019451,2]
[315793384,1709183432699,-500.0,0.00019451,2]
[315793386,1709183432708,-3288.94,0.00019451,2]
[315793388,1709183432718,-500.0,0.00019451,2]
[315793390,1709183432727,-500.0,0.00019451,2]
[315793392,1709183432736,-500.0,0.00019451,2]
[315793394,1709183432746,-500.0,0.00019452,2]
[315793396,1709183432756,-500.0,0.00019452,2]
[315793398,1709183432765,-500.0,0.00019452,2]
[315793400,1709183432776,-500.0,0.00019452,2]
[315793402,1709183432785,-1371.79,0.00019452,2]
[315793404,1709183432795,-2001.04,0.00019452,2]
[315793406,1709183432804,-500.0,0.00019452,2]
[315793408,1709183432814,-710.77,0.00019452,2]
[315793410,1709183432824,-500.0,0.00019452,2]
[315793412,1709183432834,-3416.23,0.00019626,2]
[315793414,1709183432844,-637.54,0.00019713,2]
[315793416,1709183432853,-500.0,0.00019714,2]
[315793418,1709183432863,-511.75,0.00019714,2]
[315793420,1709183432872,-516.44,0.00019714,2]
[315793422,1709183432882,-500.0,0.00019714,2]
[315793424,1709183432897,-500.0,0.00019714,2]
[315793426,1709183432906,-500.0,0.00019725,2]
[315793428,1709183432916,-500.0,0.00019725,2]
[315793430,1709183432925,-500.0,0.00019725,2]
[315793432,1709183432935,-3288.94,0.00019725,2]
[315793434,1709183432946,-500.0,0.00019725,2]
[315793436,1709183432955,-338.60457189,0.00019725,2]
[315793438,1709183432964,-500.0,0.00019725,2]
[315793440,1709183432974,-500.0,0.00019726,2]
[315793442,1709183432983,-500.0,0.00019726,2]
[315793444,1709183432992,-500.0,0.00019726,2]
[315793446,1709183433001,-500.0,0.00019726,2]
[315793448,1709183433010,-1371.79,0.00019726,2]
[315793449,1709183433019,-2001.04,0.00019726,2]
[315793450,1709183433028,-500.0,0.00019726,2]
[315793451,1709183433037,-710.77,0.00019726,2]
[315793452,1709183433047,-500.0,0.00019726,2]
[315793453,1709183433057,-4932.03,0.0001988,3]
[315793454,1709183433067,-5918.44,0.0001989,3]
[315793455,1709183433079,-3416.23,0.000199,2]
[315793456,1709183433088,-637.54,0.00019987,2]
[315793457,1709183433097,-500.0,0.00019988,2]
[315793458,1709183433106,-511.75,0.00019988,2]
[315793459,1709183433118,-516.44,0.00019988,2]
[315793460,1709183433127,-500.0,0.00019988,2]
[315793461,1709183433138,-500.0,0.00019988,2]
[315793462,1709183433149,-201.117926,0.00019988,2]
[315793463,1709183433158,-151.0,0.00019989,2]
[315793464,1709183433168,-258.57,0.0001999,3]
[315793465,1709183433177,-775.71,0.0001999,3]
[315793466,1709183433187,-500.0,0.00019999,2]
[315793467,1709183433196,-500.0,0.00019999,2]
[315793468,1709183433205,-500.0,0.00019999,2]
[315793469,1709183433214,-3288.94,0.00019999,2]
[315793470,1709183433223,-500.0,0.00019999,2]
[315793471,1709183433233,-500.0,0.00019999,2]
[315793472,1709183433243,-4611.54905335,0.0002,2]
[315793474,1709183433252,-151.02573632,0.0002,2]
[315793475,1709183433261,-500.0,0.0002,2]
[315793476,1709183433270,-151.0,0.0002,2]
[315793478,1709183433279,-500.0,0.0002,2]
[315793480,1709183433289,-5569.94466415,0.0002,4]
[315793482,1709183433298,-155.65345992,0.0002,2]
[315793484,1709183433307,-500.0,0.0002,2]
[315793486,1709183433317,-500.0,0.0002,2]
[315793488,1709183433327,-1371.79,0.0002,2]
[315793490,1709183433336,-2001.04,0.0002,2]
[315793492,1709183433345,-500.0,0.0002,2]
[315793494,1709183433355,-710.77,0.0002,2]
[315793496,1709183433364,-500.0,0.0002,2]
[315793498,1709183433373,-5000.0,0.00020008,5]
[315793500,1709183433382,-5000.0,0.00020008,5]
[315793502,1709183433394,-151.0,0.00020008,2]
[315793504,1709183433403,-5000.0,0.00020015,5]
[315793506,1709183433412,-87.77641844,0.00020015,5]
[315793627,1709183439446,-500.0,0.00019178,2]
[315793629,1709183439457,-267.94020647,0.00019452,2]
[315793631,1709183439466,-201.117926,0.00019988,2]
[315793633,1709183439475,-201.117926,0.0002,2]
[315793635,1709183439485,-241.21550423,0.0002,2]
[315793637,1709183439494,-201.117926,0.0002,2]
[315793639,1709183439503,-238.50130044,0.00020004,2]
[315793641,1709183439512,-201.117926,0.00020008,2]
[315793643,1709183439521,-201.117926,0.00020008,2]
[315793645,1709183439530,-4912.22358156,0.00020015,5]
[315793647,1709183439539,-1571.24803691,0.00020104,2]
[315793649,1709183439548,-3416.23,0.00020174,2]
[315793651,1709183439558,-201.117926,0.00020174,2]
[315793653,1709183439567,-201.117926,0.00020174,2]
[315793655,1709183439576,-1000.32456294,0.00020213,2]
[315793657,1709183439585,-500.0,0.00020213,2]
[315793659,1709183439594,-500.0,0.00020213,2]
[315793661,1709183439603,-195.57868672,0.00020213,2]
[315793663,1709183439611,-151.0,0.00020213,2]
[315793665,1709183439621,-2068.40894191,0.00020214,5]
[315793846,1709183441301,-1950.09256883,0.00020214,5]
[315793848,1709183441310,-606.00401403,0.00020214,5]
[315794186,1709183444619,-500.0,0.00019626,2]
[315794188,1709183444629,-267.63100481,0.000199,2]
[315794190,1709183444638,-5000.0,0.00020038,5]
[315794192,1709183444648,-4110.03,0.00020204,3]
[315794194,1709183444657,-4393.99598597,0.00020214,5]
[315794196,1709183444666,-849.31690271,0.00020214,5]
[315794332,1709183446312,-1595.21074153,0.00020214,5]
[315794335,1709183446322,-148.70605855,0.00020214,5]
[315794341,1709183446379,-1375.52,0.00020214,5]
[315794348,1709183446450,-3475.77394145,0.00020214,5]
[315794350,1709183446462,-5000.0,0.00020214,5]
[315794352,1709183446474,-5964.84238454,0.00020214,5]
[315794354,1709183446485,-5000.0,0.00020214,5]
[315794356,1709183446496,-5000.0,0.00020214,5]
[315794358,1709183446507,-22138.37873559,0.00020214,5]
[315794360,1709183446518,-5000.0,0.00020214,5]
[315794362,1709183446529,-5000.0,0.00020214,5]
[315794364,1709183446539,-3958.58512652,0.00020214,5]
[315794366,1709183446553,-1041.41487348,0.00020214,5]
[315794368,1709183446564,-6543.91153436,0.00020214,5]
[315794370,1709183446576,-195.840324,0.00020214,2]
[315794372,1709183446587,-2122.06907837,0.00020214,5]
[315794374,1709183446599,-5000.0,0.00020214,5]
[315794376,1709183446609,-201.117926,0.00020214,2]
[315794378,1709183446621,-201.117926,0.00020214,2]
[315794380,1709183446631,-201.117926,0.00020214,2]
[315794382,1709183446643,-201.117926,0.00020214,2]
[315794384,1709183446660,-201.117926,0.00020214,2]
[315794386,1709183446672,-201.117926,0.00020214,2]
[315794388,1709183446683,-201.117926,0.00020214,2]
[315794390,1709183446694,-201.117926,0.00020214,2]
[315794392,1709183446706,-201.117926,0.00020214,2]
[315794394,1709183446717,-201.117926,0.00020214,2]
[315794395,1709183446729,-637.54,0.00020261,2]
[315794397,1709183446740,-500.0,0.00020262,2]
[315794400,1709183446751,-511.75,0.00020262,2]
[315794402,1709183446761,-516.44,0.00020262,2]
[315794403,1709183446773,-500.0,0.00020262,2]
[315794405,1709183446785,-500.0,0.00020262,2]
[315794408,1709183446796,-500.0,0.00020273,2]
[315794409,1709183446807,-500.0,0.00020273,2]
[315794411,1709183446818,-500.0,0.00020273,2]
[315794413,1709183446829,-3288.94,0.00020273,2]
[315794415,1709183446840,-500.0,0.00020273,2]
[315794417,1709183446851,-500.0,0.00020273,2]
[315794419,1709183446861,-500.0,0.00020273,2]
[315794421,1709183446875,-2001.04,0.00020273,2]
[315794423,1709183446885,-1371.79,0.00020273,2]
[315794425,1709183446898,-500.0,0.00020273,2]
[315794427,1709183446908,-710.77,0.00020273,2]
[315794429,1709183446920,-500.0,0.00020273,2]
[315794431,1709183446931,-500.0,0.00020273,2]
[315794433,1709183446942,-201.117926,0.00020273,2]
[315794435,1709183446953,-201.11792,0.00020273,2]
[315794437,1709183446964,-727.66371663,0.00020299,2]
[315794439,1709183446978,-1128.80865145,0.00020299,2]
[315794441,1709183446988,-488.965208,0.00020299,2]
[315794443,1709183446999,-1000.0,0.00020299,5]
[315794445,1709183447009,-1000.0,0.00020299,5]
[315794447,1709183447020,-556.73530837,0.00020299,2]
[315794449,1709183447031,-180.02323794,0.00020299,2]
[315794451,1709183447042,-405.93136435,0.00020299,2]
[315794453,1709183447053,-1000.0,0.000203,2]
[315794455,1709183447066,-3416.23,0.00020448,2]
[315794457,1709183447078,-5001.83972274,0.000205,5]
[315794459,1709183447090,-637.54,0.00020535,2]
[315794461,1709183447102,-500.0,0.00020536,2]
[315794463,1709183447116,-511.75,0.00020536,2]
[315794465,1709183447126,-516.44,0.00020536,2]
[315794467,1709183447136,-500.0,0.00020536,2]
[315794469,1709183447146,-500.0,0.00020536,2]
[315794471,1709183447157,-500.0,0.00020547,2]
[315794473,1709183447168,-500.0,0.00020547,2]
[315794475,1709183447177,-500.0,0.00020547,2]
[315794477,1709183447189,-3288.94,0.00020547,2]
[315794479,1709183447199,-500.0,0.00020547,2]
[315794481,1709183447209,-500.0,0.00020547,2]
[315794483,1709183447219,-500.0,0.00020547,2]
[315794485,1709183447228,-2001.04,0.00020547,2]
[315794487,1709183447237,-1371.79,0.00020547,2]
[315794488,1709183447247,-500.0,0.00020547,2]
[315794490,1709183447257,-710.77,0.00020547,2]
[315794492,1709183447270,-500.0,0.00020547,2]
[315794494,1709183447280,-500.0,0.00020547,2]
[315794496,1709183447290,-1000.0,0.00020601,2]
[315794498,1709183447300,-3416.23,0.00020722,2]
[315794500,1709183447310,-500.0,0.00020731,2]
[315794503,1709183447322,-637.54,0.00020809,2]
[315794505,1709183447331,-500.0,0.0002081,2]
[315794506,1709183447342,-511.75,0.0002081,2]
[315794508,1709183447352,-516.44,0.0002081,2]
[315794510,1709183447361,-500.0,0.0002081,2]
[315794512,1709183447370,-500.0,0.0002081,2]
[315794514,1709183447379,-500.0,0.0002082,2]
[315794516,1709183447388,-500.0,0.0002082,2]
[315794518,1709183447399,-500.0,0.0002082,2]
[315794520,1709183447409,-216.8895403,0.0002082,2]
[315794522,1709183447418,-500.0,0.0002082,2]
[315794524,1709183447427,-500.0,0.0002082,2]
[315794526,1709183447436,-132.12884184,0.0002082,2]
[315806511,1709183925634,155.13030946,0.00017999,2]
[315806513,1709183968010,274.00317953,0.00017999,2]
[315806514,1709183969426,1592.05606337,0.00017999,2]
[315806518,1709184040218,159.88582716,0.00017999,2]
[315806519,1709184063312,24900.0,0.00017999,2]
[315806523,1709184221645,155.13962566,0.00017999,2]
[315806524,1709184319435,188.38117424,0.00017902,2]
[315806525,1709184343654,214.107232,0.00017934,2]
[315806529,1709184544627,24900.0,0.00017955,2]
[315806580,1709184632483,-274.00317953,0.00018699,2]
[315806582,1709184632493,-201.95466694,0.000187,2]
[315806584,1709184632503,-71.57640542,0.00018773,2]
[315806587,1709184632517,-130.37826151,0.00018773,2]
[315806589,1709184632527,-412.11084671,0.0001885,2]
[315806591,1709184632543,-7596.67932163,0.0001885,2]
[315806593,1709184632553,-4701.36953193,0.00018851,2]
[315806595,1709184632563,-300.0,0.00018851,2]
[315806597,1709184632572,-5444.70688033,0.00018852,2]
[315806599,1709184632582,-541.13821806,0.000189,2]
[315806602,1709184632592,-155.13962566,0.00019177,2]
[315806604,1709184632602,-500.0,0.00019178,2]
[315806606,1709184632612,-500.0,0.00019178,2]
[315806608,1709184632621,-500.0,0.00019178,2]
[315806610,1709184632631,-500.0,0.00019178,2]
[315806612,1709184632641,-500.0,0.00019178,2]
[315806614,1709184632650,-500.0,0.00019178,2]
[315806616,1709184632660,-500.0,0.00019178,2]
[315806618,1709184632669,-500.0,0.00019178,2]
[315806620,1709184632681,-500.0,0.00019178,2]
[315806622,1709184632691,-500.0,0.00019178,2]
[315806625,1709184632701,-1710.12,0.00019178,2]
[315806627,1709184632710,-500.0,0.00019178,2]
[315806629,1709184632720,-500.0,0.00019178,2]
[315806631,1709184632730,-500.0,0.00019178,2]
[315806633,1709184632740,-585.25,0.00019178,2]
[315806635,1709184632749,-500.0,0.00019178,2]
[315806637,1709184632759,-500.0,0.00019178,2]
[315806639,1709184632768,-500.0,0.00019178,2]
[315806641,1709184632776,-500.0,0.00019178,2]
[315806642,1709184632783,-500.0,0.00019178,2]
[315806644,1709184632790,-1173.98,0.00019178,2]
[315806660,1709184632797,-500.0,0.00019178,2]
[315806663,1709184632945,-500.0,0.00019178,2]
[315806665,1709184632954,-500.0,0.00019178,2]
[315806667,1709184632963,-500.0,0.00019178,2]
[315806669,1709184632971,-500.0,0.00019178,2]
[315806671,1709184632980,-500.0,0.00019178,2]
[315806673,1709184632989,-500.0,0.00019178,2]
[315806675,1709184632998,-166.666666,0.00019178,2]
[315806677,1709184633006,-500.0,0.00019449,2]
[315806679,1709184633015,-500.0,0.00019449,2]
[315806681,1709184633024,-326.93437623,0.00019449,2]
[315806683,1709184633033,-1269.79130975,0.00019449,2]
[315806685,1709184633048,-2055.45869025,0.00019449,2]
[315806687,1709184633057,-500.0,0.00019449,2]
[315806689,1709184633066,-576.23,0.00019449,2]
[315806691,1709184633075,-500.0,0.00019449,2]
[315806693,1709184633084,-2863.79,0.00019449,2]
[315806695,1709184633092,-250.01023506,0.00019449,2]
[315806697,1709184633101,-500.03493772,0.00019452,2]
[315806699,1709184633110,-566.86571756,0.00019452,2]
[315806701,1709184633119,-500.0,0.00019452,2]
[315806703,1709184633128,-242.60303199,0.00019452,2]
[315806705,1709184633136,-1710.12,0.00019452,2]
[315806708,1709184633152,-500.0,0.00019452,2]
[315806710,1709184633165,-500.0,0.00019452,2]
[315806712,1709184633176,-585.25,0.00019452,2]
[315806714,1709184633186,-500.0,0.00019452,2]
[315806716,1709184633195,-500.0,0.00019452,2]
[315806718,1709184633204,-1173.98,0.00019452,2]
[315806720,1709184633214,-500.0,0.00019452,2]
[315806723,1709184633223,-500.0,0.00019452,2]
[315806725,1709184633233,-500.0,0.00019452,2]
[315806727,1709184633242,-500.0,0.00019452,2]
[315806729,1709184633251,-500.0,0.00019452,2]
[315806731,1709184633261,-500.0,0.00019452,2]
[315806733,1709184633270,-4197.3,0.00019713,3]
[315806735,1709184633279,-6044.11,0.00019716,3]
[315806737,1709184633288,-5036.76,0.00019716,3]
[315806738,1709184633297,-500.0,0.00019723,2]
[315806739,1709184633306,-3325.25,0.00019723,2]
[315806740,1709184633316,-500.0,0.00019723,2]
[315806741,1709184633325,-576.23,0.00019723,2]
[315806742,1709184633334,-500.0,0.00019723,2]
[315806743,1709184633343,-2863.79,0.00019723,2]
[315806744,1709184633353,-500.0,0.00019726,2]
[315806745,1709184633362,-1710.12,0.00019726,2]
[315806746,1709184633371,-500.0,0.00019726,2]
[315806747,1709184633381,-500.0,0.00019726,2]
[315806748,1709184633390,-585.25,0.00019726,2]
[315806749,1709184633399,-217.72,0.00019726,2]
[315806750,1709184633408,-500.0,0.00019726,2]
[315806751,1709184633420,-1173.98,0.00019726,2]
[315806752,1709184633432,-500.0,0.00019726,2]
[315806753,1709184633441,-500.0,0.00019726,2]
[315806754,1709184633450,-500.0,0.00019726,2]
[315806755,1709184633460,-500.0,0.00019726,2]
[315806756,1709184633470,-238.47478107,0.00019726,2]
[315806757,1709184633479,-500.0,0.00019726,2]
[315806758,1709184633489,-855.74,0.0001999,3]
[315806759,1709184633498,-500.0,0.00019997,2]
[315806760,1709184633507,-3325.25,0.00019997,2]
[315806761,1709184633518,-247.29,0.00019997,2]
[315806762,1709184633527,-576.23,0.00019997,2]
[315806763,1709184633537,-500.0,0.00019997,2]
[315806764,1709184633547,-2863.79,0.00019997,2]
[315806765,1709184633557,-500.0,0.0002,2]
[315806766,1709184633567,-1710.12,0.0002,2]
[315806767,1709184633576,-500.0,0.0002,2]
[315806768,1709184633586,-500.0,0.0002,2]
[315806769,1709184633596,-585.25,0.0002,2]
[315806770,1709184633605,-500.0,0.0002,2]
[315806771,1709184633614,-1173.98,0.0002,2]
[315806772,1709184633623,-500.0,0.0002,2]
[315806773,1709184633632,-500.0,0.0002,2]
[315806774,1709184633641,-238.50130044,0.0002,2]
[315806775,1709184633651,-201.01292019,0.0002,2]
[315806776,1709184633661,-500.0,0.0002,2]
[315806777,1709184633670,-500.0,0.0002,2]
[315806778,1709184633683,-500.0,0.0002,2]
[315806779,1709184633691,-5000.0,0.0002019,5]
[315806780,1709184633701,-5000.0,0.0002019,5]
[315806781,1709184633710,-4211.53525957,0.0002019,5]
[315806782,1709184633719,-309.3042461,0.00020192,2]
[315806783,1709184633728,-500.0,0.00020271,2]
[315806784,1709184633737,-3325.25,0.00020271,2]
[315806785,1709184633746,-576.23,0.00020271,2]
[315806786,1709184633755,-500.0,0.00020271,2]
[315806787,1709184633764,-2863.79,0.00020271,2]
[315806788,1709184633773,-151.0,0.00020273,2]
[315806789,1709184633782,-500.0,0.00020273,2]
[315806790,1709184633791,-1710.12,0.00020273,2]
[315806791,1709184633799,-500.0,0.00020273,2]
[315806792,1709184633809,-500.0,0.00020273,2]
[315806793,1709184633817,-585.25,0.00020273,2]
[315806794,1709184633826,-500.0,0.00020273,2]
[315806795,1709184633835,-1173.98,0.00020273,2]
[315806796,1709184633844,-500.0,0.00020273,2]
[315806797,1709184633854,-500.0,0.00020273,2]
[315806798,1709184633862,-500.0,0.00020273,2]
[315806799,1709184633871,-500.0,0.00020273,2]
[315806800,1709184633880,-500.0,0.00020273,2]
[315806801,1709184633889,-174.63043143,0.00020299,2]
[315806802,1709184633898,-366.77325197,0.00020299,2]
[315806803,1709184633907,-1000.0,0.00020299,5]
[315806804,1709184633915,-700.0,0.00020299,2]
[315806805,1709184633925,-388.37757406,0.00020299,2]
[315806806,1709184633934,-166.44753174,0.00020299,2]
[315806807,1709184633943,-500.0,0.00020545,2]
[315806808,1709184633952,-3325.25,0.00020545,2]
[315806809,1709184633961,-576.23,0.00020545,2]
[315806810,1709184633970,-500.0,0.00020545,2]
[315806811,1709184633980,-2863.79,0.00020545,2]
[315806812,1709184633989,-151.0,0.00020546,2]
[315806813,1709184633998,-500.0,0.00020547,2]
[315806814,1709184634007,-1710.12,0.00020547,2]
[315806815,1709184634016,-500.0,0.00020547,2]
[315806816,1709184634026,-500.0,0.00020547,2]
[315806817,1709184634035,-585.25,0.00020547,2]
[315806818,1709184634044,-500.0,0.00020547,2]
[315806819,1709184634053,-1173.98,0.00020547,2]
[315806820,1709184634062,-500.0,0.00020547,2]
[315806821,1709184634071,-500.0,0.00020547,2]
[315806822,1709184634080,-500.0,0.00020547,2]
[315806823,1709184634089,-500.0,0.00020547,2]
[315806824,1709184634098,-500.0,0.00020547,2]
[315806825,1709184634108,-1000.0,0.00020573,2]
[315806826,1709184634117,-1000.0,0.00020729,2]
[315806827,1709184634126,-500.0,0.00020819,2]
[315806829,1709184634134,-3325.25,0.00020819,2]
[315806830,1709184634143,-576.23,0.00020819,2]
[315806832,1709184634152,-500.0,0.00020819,2]
[315806833,1709184634162,-2863.79,0.00020819,2]
[315806835,1709184634170,-155.12254681,0.0002082,2]
[315806836,1709184634181,-606.67299265,0.0002082,2]
[315806838,1709184634190,-500.0,0.00020821,2]
[315806839,1709184634199,-1710.12,0.00020821,2]
[315806841,1709184634209,-500.0,0.00020821,2]
[315806843,1709184634218,-500.0,0.00020821,2]
[315806845,1709184634227,-585.25,0.00020821,2]
[315806847,1709184634236,-500.0,0.00020821,2]
[315806849,1709184634245,-1173.98,0.00020821,2]
[315806851,1709184634253,-500.0,0.00020821,2]
[315806853,1709184634262,-500.0,0.00020821,2]
[315806855,1709184634271,-500.0,0.00020821,2]
[315806857,1709184634280,-500.0,0.00020821,2]
[315806859,1709184634289,-500.0,0.00020821,2]
[315806861,1709184634298,-151.0,0.00020821,2]
[315806863,1709184634307,-469.24726258,0.0002085,2]
[315806865,1709184634316,-1000.0,0.00020877,2]
[315806867,1709184634325,-314.28974228,0.00020898,2]
[315806869,1709184634334,-314.28974222,0.00020898,2]
[315806871,1709184634343,-314.28974222,0.00020898,2]
[315806873,1709184634352,-314.28974222,0.00020899,2]
[315806875,1709184634362,-314.28974222,0.00020899,2]
[315806877,1709184634371,-314.28974222,0.00020899,2]
[315806879,1709184634380,-314.28974222,0.00020899,2]
[315806881,1709184634389,-314.28974222,0.000209,2]
[315806883,1709184634398,-314.28974222,0.000209,2]
[315806885,1709184634408,-314.28974222,0.000209,2]
[315806888,1709184634418,-300.05151244,0.00020994,2]
[315806890,1709184634430,-258.69698852,0.00020996,2]
[315806891,1709184634440,-211.21626356,0.00020996,2]
[315806894,1709184634455,-155.34924833,0.00020996,2]
[315806896,1709184634465,-260.46445878,0.00020996,2]
[315806897,1709184634475,-300.82990921,0.00020996,2]
[315806899,1709184634484,-519.91132688,0.00020996,3]
[315806901,1709184634493,-176.37430786,0.00020996,2]
[315806903,1709184634503,-202.38878052,0.00020996,2]
[315806905,1709184634512,-155.25921865,0.00020996,2]
[315806907,1709184634522,-183.90433986,0.00020996,2]
[315806909,1709184634531,-173.47534946,0.00020996,2]
[315806911,1709184634540,-155.20176229,0.00020996,2]
[315806913,1709184634549,-1687.29005377,0.00020996,2]
[315806915,1709184634558,-233.84611186,0.00020996,2]